[Event "Titled Tuesday Blitz April 19 Early 2022"]
[White "Karavade, Eesha"]
[Black "Goryachkina, Aleksandra"]
[WhiteFideId "5012600"]
[BlackFideId "4147103"]
[WhiteElo "2500"]
[BlackElo "2657"]
[Result "1/2-1/2"]
[Round "08"]
[TimeControl "180+1"]
[Date "2022.04.19"]
[WhiteClock "0:00:53"]
[BlackClock "0:00:08"]

1. d4 {[%clk 0:03:00]}  Nf6 {[%clk 0:02:57]} 2. c4 {[%clk 0:03:00]}  e6 {[%clk 0:02:57]} 3. Nf3 {[%clk 0:02:57]}  d5 {[%clk 0:02:54]} 4. Nc3 {[%clk 0:02:56]}  Nbd7 {[%clk 0:02:53]} 5. cxd5 {[%clk 0:02:52]}  exd5 {[%clk 0:02:53]} 6. Bf4 {[%clk 0:02:52]}  c6 {[%clk 0:02:46]} 7. e3 {[%clk 0:02:51]}  Bb4 {[%clk 0:02:37]} 8. Bd3 {[%clk 0:02:49]}  O-O {[%clk 0:02:17]} 9. O-O {[%clk 0:02:43]}  Re8 {[%clk 0:02:18]} 10. h3 {[%clk 0:02:42]}  Nf8 {[%clk 0:02:15]} 11. Qb3 {[%clk 0:02:40]}  Bd6 {[%clk 0:02:12]} 12. Bxd6 {[%clk 0:02:32]}  Qxd6 {[%clk 0:02:13]} 13. Ne5 {[%clk 0:02:32]}  Qe7 {[%clk 0:02:04]} 14. Rae1 {[%clk 0:02:30]}  c5 {[%clk 0:01:44]} 15. Nxd5 {[%clk 0:02:26]}  Nxd5 {[%clk 0:01:42]} 16. Qxd5 {[%clk 0:02:25]}  Be6 {[%clk 0:01:29]} 17. Qxc5 {[%clk 0:02:25]}  Qxc5 {[%clk 0:01:29]} 18. dxc5 {[%clk 0:02:25]}  Bxa2 {[%clk 0:01:26]} 19. Nc4 {[%clk 0:02:18]}  Bxc4 {[%clk 0:00:51]} 20. Bxc4 {[%clk 0:02:17]}  Ne6 {[%clk 0:00:51]} 21. b4 {[%clk 0:02:13]}  a5 {[%clk 0:00:44]} 22. Bxe6 {[%clk 0:02:04]}  Rxe6 {[%clk 0:00:45]} 23. bxa5 {[%clk 0:02:04]}  Rxa5 {[%clk 0:00:44]} 24. Rb1 {[%clk 0:02:05]}  Rxc5 {[%clk 0:00:34]} 25. Rxb7 {[%clk 0:02:05]}  h5 {[%clk 0:00:34]} 26. Rd1 {[%clk 0:02:01]}  Rf6 {[%clk 0:00:30]} 27. Rb8+ {[%clk 0:02:00]}  Kh7 {[%clk 0:00:30]} 28. Rb2 {[%clk 0:01:57]}  Rfc6 {[%clk 0:00:28]} 29. e4 {[%clk 0:01:52]}  Rc1 {[%clk 0:00:26]} 30. Rd2 {[%clk 0:01:52]}  Rxd1+ {[%clk 0:00:26]} 31. Rxd1 {[%clk 0:01:52]}  g6 {[%clk 0:00:26]} 32. h4 {[%clk 0:01:50]}  Kg7 {[%clk 0:00:27]} 33. g3 {[%clk 0:01:49]}  Rc4 {[%clk 0:00:26]} 34. Re1 {[%clk 0:01:45]}  Kf6 {[%clk 0:00:26]} 35. Kg2 {[%clk 0:01:45]}  Ke5 {[%clk 0:00:24]} 36. f4+ {[%clk 0:01:44]}  Kf6 {[%clk 0:00:24]} 37. Kf3 {[%clk 0:01:44]}  Rc3+ {[%clk 0:00:22]} 38. Re3 {[%clk 0:01:44]}  Rc1 {[%clk 0:00:23]} 39. Rd3 {[%clk 0:01:43]}  Rf1+ {[%clk 0:00:20]} 40. Ke2 {[%clk 0:01:40]}  Rg1 {[%clk 0:00:19]} 41. Kf2 {[%clk 0:01:39]}  Ra1 {[%clk 0:00:18]} 42. Rd6+ {[%clk 0:01:39]}  Ke7 {[%clk 0:00:17]} 43. e5 {[%clk 0:01:38]}  Ra3 {[%clk 0:00:16]} 44. Rb6 {[%clk 0:01:28]}  Rc3 {[%clk 0:00:16]} 45. Rb7+ {[%clk 0:01:28]}  Kf8 {[%clk 0:00:16]} 46. Rb2 {[%clk 0:01:23]}  Ra3 {[%clk 0:00:16]} 47. Re2 {[%clk 0:01:23]}  Rb3 {[%clk 0:00:15]} 48. Re3 {[%clk 0:01:24]}  Rb2+ {[%clk 0:00:16]} 49. Kf3 {[%clk 0:01:24]}  Rb4 {[%clk 0:00:16]} 50. g4 {[%clk 0:01:23]}  hxg4+ {[%clk 0:00:16]} 51. Kxg4 {[%clk 0:01:23]}  Rb1 {[%clk 0:00:17]} 52. Rg3 {[%clk 0:01:13]}  Rh1 {[%clk 0:00:16]} 53. Rb3 {[%clk 0:01:07]}  Rg1+ {[%clk 0:00:15]} 54. Kf3 {[%clk 0:01:06]}  Rh1 {[%clk 0:00:15]} 55. Rb8+ {[%clk 0:01:06]}  Kg7 {[%clk 0:00:15]} 56. Rb7 {[%clk 0:01:06]}  Kf8 {[%clk 0:00:14]} 57. Kg4 {[%clk 0:01:01]}  Rg1+ {[%clk 0:00:12]} 58. Kf3 {[%clk 0:01:00]}  Rh1 {[%clk 0:00:12]} 59. f5 {[%clk 0:01:00]}  gxf5 {[%clk 0:00:11]} 60. Kf4 {[%clk 0:01:00]}  Rxh4+ {[%clk 0:00:10]} 61. Kg5 {[%clk 0:01:00]}  Rh1 {[%clk 0:00:10]} 62. Kf6 {[%clk 0:00:58]}  Rh6+ {[%clk 0:00:09]} 63. Kxf5 {[%clk 0:00:58]}  Kg7 {[%clk 0:00:09]} 64. Rd7 {[%clk 0:00:56]}  Rh5+ {[%clk 0:00:09]} 65. Kf4 {[%clk 0:00:55]}  Rh1 {[%clk 0:00:09]} 66. Kf5 {[%clk 0:00:54]}  Rf1+ {[%clk 0:00:09]} 67. Ke4 {[%clk 0:00:53]}  Re1+ {[%clk 0:00:09]} 68. Kf4 {[%clk 0:00:53]}  Rf1+ {[%clk 0:00:08]} 69. Ke4 {[%clk 0:00:53]}  Re1+ {[%clk 0:00:07]} 70. Kf5 {[%clk 0:00:53]}  Rf1+ {[%clk 0:00:08]} 71. Ke4 {[%clk 0:00:53]} 1/2-1/2


[Site "https://www.chess.com"]

[Event "Titled Tuesday Blitz April 19 Early 2022"]
[White "Kosteniuk, Alexandra"]
[Black "Oganian, Miran"]
[WhiteFideId "4128125"]
[BlackFideId "4122488"]
[WhiteElo "2469"]
[BlackElo "2357"]
[Result "0-1"]
[Round "08"]
[TimeControl "180+1"]
[Date "2022.04.19"]
[WhiteClock "0:00:09"]
[BlackClock "0:00:08"]

1. e4 {[%clk 0:03:00]}  e6 {[%clk 0:02:59]} 2. d4 {[%clk 0:03:00]}  d5 {[%clk 0:03:00]} 3. exd5 {[%clk 0:03:01]}  exd5 {[%clk 0:03:00]} 4. Nf3 {[%clk 0:03:01]}  Nc6 {[%clk 0:03:01]} 5. h3 {[%clk 0:03:01]}  Bd6 {[%clk 0:03:01]} 6. c4 {[%clk 0:03:01]}  dxc4 {[%clk 0:02:54]} 7. Bxc4 {[%clk 0:03:01]}  Qe7+ {[%clk 0:02:49]} 8. Be3 {[%clk 0:02:53]}  Nf6 {[%clk 0:02:44]} 9. O-O {[%clk 0:02:49]}  Be6 {[%clk 0:02:30]} 10. Bb5 {[%clk 0:02:41]}  O-O {[%clk 0:02:27]} 11. Nc3 {[%clk 0:02:38]}  Nb4 {[%clk 0:02:24]} 12. Bg5 {[%clk 0:02:33]}  Nbd5 {[%clk 0:02:12]} 13. Re1 {[%clk 0:02:30]}  Qd8 {[%clk 0:02:09]} 14. Ne5 {[%clk 0:02:23]}  Be7 {[%clk 0:02:06]} 15. Bd3 {[%clk 0:02:18]}  h6 {[%clk 0:02:04]} 16. Bh4 {[%clk 0:01:51]}  c6 {[%clk 0:02:02]} 17. Bb1 {[%clk 0:01:40]}  c5 {[%clk 0:01:27]} 18. dxc5 {[%clk 0:01:25]}  Nxc3 {[%clk 0:01:26]} 19. bxc3 {[%clk 0:01:24]}  Qxd1 {[%clk 0:01:23]} 20. Rxd1 {[%clk 0:01:24]}  g5 {[%clk 0:01:19]} 21. Bg3 {[%clk 0:01:22]}  Bxc5 {[%clk 0:01:19]} 22. Bc2 {[%clk 0:01:13]}  Rac8 {[%clk 0:01:19]} 23. Nf3 {[%clk 0:01:06]}  Nd5 {[%clk 0:01:11]} 24. Be5 {[%clk 0:01:01]}  Bb6 {[%clk 0:01:02]} 25. c4 {[%clk 0:00:50]}  Nb4 {[%clk 0:00:56]} 26. Bb3 {[%clk 0:00:49]}  Rfd8 {[%clk 0:00:51]} 27. Bd6 {[%clk 0:00:47]}  Na6 {[%clk 0:00:46]} 28. Ne5 {[%clk 0:00:46]}  Nc5 {[%clk 0:00:45]} 29. Ng4 {[%clk 0:00:45]}  Bxg4 {[%clk 0:00:41]} 30. hxg4 {[%clk 0:00:45]}  Ne4 {[%clk 0:00:42]} 31. c5 {[%clk 0:00:46]}  Bxc5 {[%clk 0:00:33]} 32. Bxc5 {[%clk 0:00:44]}  Nxc5 {[%clk 0:00:34]} 33. Bd5 {[%clk 0:00:44]}  Rd7 {[%clk 0:00:32]} 34. Rac1 {[%clk 0:00:41]}  b6 {[%clk 0:00:32]} 35. Bf3 {[%clk 0:00:39]}  Rcd8 {[%clk 0:00:32]} 36. Rxd7 {[%clk 0:00:39]}  Rxd7 {[%clk 0:00:33]} 37. Rc2 {[%clk 0:00:40]}  Kg7 {[%clk 0:00:31]} 38. g3 {[%clk 0:00:38]}  Kf6 {[%clk 0:00:30]} 39. Kg2 {[%clk 0:00:38]}  Rd4 {[%clk 0:00:28]} 40. Be2 {[%clk 0:00:35]}  Ke7 {[%clk 0:00:27]} 41. Bc4 {[%clk 0:00:35]}  f6 {[%clk 0:00:23]} 42. Rc1 {[%clk 0:00:33]}  Kd6 {[%clk 0:00:23]} 43. Bf7 {[%clk 0:00:32]}  Rd2 {[%clk 0:00:20]} 44. Rh1 {[%clk 0:00:30]}  Nd3 {[%clk 0:00:19]} 45. Kf3 {[%clk 0:00:26]}  Ne5+ {[%clk 0:00:18]} 46. Ke3 {[%clk 0:00:26]}  Rb2 {[%clk 0:00:12]} 47. Bb3 {[%clk 0:00:21]}  Nxg4+ {[%clk 0:00:12]} 48. Kf3 {[%clk 0:00:21]}  f5 {[%clk 0:00:08]} 49. Rd1+ {[%clk 0:00:20]}  Ke7 {[%clk 0:00:07]} 50. Re1+ {[%clk 0:00:19]}  Kf8 {[%clk 0:00:07]} 51. Re2 {[%clk 0:00:15]}  Rxe2 {[%clk 0:00:07]} 52. Kxe2 {[%clk 0:00:15]}  Ke7 {[%clk 0:00:07]} 53. f3 {[%clk 0:00:15]}  Ne5 {[%clk 0:00:07]} 54. Ke3 {[%clk 0:00:15]}  Kd6 {[%clk 0:00:07]} 55. Bc2 {[%clk 0:00:14]}  Ke6 {[%clk 0:00:07]} 56. Bb3+ {[%clk 0:00:14]}  Kf6 {[%clk 0:00:07]} 57. Bd5 {[%clk 0:00:14]}  Ng6 {[%clk 0:00:07]} 58. Bc6 {[%clk 0:00:11]}  f4+ {[%clk 0:00:07]} 59. gxf4 {[%clk 0:00:10]}  Nxf4 {[%clk 0:00:08]} 60. Kf2 {[%clk 0:00:10]}  h5 {[%clk 0:00:09]} 61. Kg3 {[%clk 0:00:11]}  h4+ {[%clk 0:00:09]} 62. Kg4 {[%clk 0:00:11]}  h3 {[%clk 0:00:10]} 63. Kg3 {[%clk 0:00:12]}  Ke5 {[%clk 0:00:10]} 64. Bd7 {[%clk 0:00:12]}  a5 {[%clk 0:00:09]} 65. a4 {[%clk 0:00:11]}  Kd4 {[%clk 0:00:09]} 66. Kh2 {[%clk 0:00:10]}  Ke3 {[%clk 0:00:09]} 67. Kg3 {[%clk 0:00:11]}  h2 {[%clk 0:00:08]} 68. Kxh2 {[%clk 0:00:11]}  Kxf3 {[%clk 0:00:08]} 69. Bc6+ {[%clk 0:00:11]}  Kf2 {[%clk 0:00:07]} 70. Bd7 {[%clk 0:00:11]}  Kf3 {[%clk 0:00:06]} 71. Bc6+ {[%clk 0:00:11]}  Kg4 {[%clk 0:00:07]} 72. Bd7+ {[%clk 0:00:10]}  Kh4 {[%clk 0:00:07]} 73. Bc6 {[%clk 0:00:10]}  g4 {[%clk 0:00:08]} 74. Bb5 {[%clk 0:00:10]}  g3+ {[%clk 0:00:08]} 75. Kg1 {[%clk 0:00:10]}  Kg5 {[%clk 0:00:08]} 76. Bc6 {[%clk 0:00:10]}  Kf6 {[%clk 0:00:09]} 77. Bb5 {[%clk 0:00:10]}  Ke5 {[%clk 0:00:10]} 78. Bc6 {[%clk 0:00:10]}  Kd4 {[%clk 0:00:11]} 79. Bb5 {[%clk 0:00:11]}  Kc5 {[%clk 0:00:12]} 80. Be8 {[%clk 0:00:11]}  Kb4 {[%clk 0:00:13]} 81. Bd7 {[%clk 0:00:11]}  Nd5 {[%clk 0:00:12]} 82. Kg2 {[%clk 0:00:11]}  Nc3 {[%clk 0:00:13]} 83. Kxg3 {[%clk 0:00:12]}  Nxa4 {[%clk 0:00:14]} 84. Kf2 {[%clk 0:00:12]}  Nc3 {[%clk 0:00:15]} 85. Ke3 {[%clk 0:00:13]}  a4 {[%clk 0:00:15]} 86. Kd2 {[%clk 0:00:13]}  Kb3 {[%clk 0:00:14]} 87. Kc1 {[%clk 0:00:13]}  b5 {[%clk 0:00:10]} 88. Be6+ {[%clk 0:00:13]}  Ka3 {[%clk 0:00:08]} 89. Kc2 {[%clk 0:00:13]}  Ne4 {[%clk 0:00:08]} 90. Kb1 {[%clk 0:00:11]}  b4 {[%clk 0:00:08]} 91. Bf5 {[%clk 0:00:11]}  Nc5 {[%clk 0:00:08]} 92. Kc2 {[%clk 0:00:10]}  b3+ {[%clk 0:00:08]} 93. Kb1 {[%clk 0:00:09]}  Kb4 {[%clk 0:00:08]} 0-1


[Site "https://www.chess.com"]

[Event "Titled Tuesday Blitz April 19 Early 2022"]
[White "Lach, Aleksandra"]
[Black "Jaferian, Koosha"]
[WhiteFideId "1134299"]
[BlackFideId "12507440"]
[WhiteElo "2172"]
[BlackElo "2030"]
[Result "0-1"]
[Round "08"]
[TimeControl "180+1"]
[Date "2022.04.19"]
[WhiteClock "0:00:08"]
[BlackClock "0:00:09"]

1. e4 {[%clk 0:03:00]}  c6 {[%clk 0:03:00]} 2. d4 {[%clk 0:03:00]}  d5 {[%clk 0:03:01]} 3. exd5 {[%clk 0:03:01]}  cxd5 {[%clk 0:03:01]} 4. Bd3 {[%clk 0:03:01]}  Nc6 {[%clk 0:03:00]} 5. c3 {[%clk 0:03:01]}  Qc7 {[%clk 0:03:00]} 6. Ne2 {[%clk 0:03:01]}  Bg4 {[%clk 0:03:00]} 7. O-O {[%clk 0:03:01]}  e6 {[%clk 0:03:00]} 8. Qe1 {[%clk 0:03:01]}  Nf6 {[%clk 0:02:59]} 9. f3 {[%clk 0:03:01]}  Bh5 {[%clk 0:02:59]} 10. Nf4 {[%clk 0:02:53]}  Bg6 {[%clk 0:02:56]} 11. Qh4 {[%clk 0:02:23]}  Bxd3 {[%clk 0:02:47]} 12. Nxd3 {[%clk 0:02:24]}  Be7 {[%clk 0:02:41]} 13. Bf4 {[%clk 0:02:20]}  Qb6 {[%clk 0:02:41]} 14. Qf2 {[%clk 0:02:20]}  O-O {[%clk 0:02:39]} 15. a4 {[%clk 0:02:08]}  Na5 {[%clk 0:02:27]} 16. b4 {[%clk 0:01:59]}  Nc4 {[%clk 0:02:22]} 17. Nd2 {[%clk 0:01:31]}  Rac8 {[%clk 0:02:22]} 18. Nb3 {[%clk 0:01:29]}  Qd8 {[%clk 0:02:14]} 19. a5 {[%clk 0:01:21]}  Bd6 {[%clk 0:01:56]} 20. Be5 {[%clk 0:00:59]}  Qe7 {[%clk 0:01:47]} 21. Rfe1 {[%clk 0:00:48]}  Nd7 {[%clk 0:01:23]} 22. Rac1 {[%clk 0:00:37]}  Rfe8 {[%clk 0:01:12]} 23. f4 {[%clk 0:00:37]}  f6 {[%clk 0:01:10]} 24. Bxd6 {[%clk 0:00:37]}  Qxd6 {[%clk 0:01:11]} 25. Qf3 {[%clk 0:00:35]}  b6 {[%clk 0:01:07]} 26. axb6 {[%clk 0:00:34]}  axb6 {[%clk 0:01:08]} 27. Re2 {[%clk 0:00:30]}  Ra8 {[%clk 0:01:05]} 28. Rce1 {[%clk 0:00:26]}  Ra3 {[%clk 0:01:05]} 29. Ndc1 {[%clk 0:00:26]}  Nf8 {[%clk 0:01:00]} 30. f5 {[%clk 0:00:24]}  e5 {[%clk 0:00:59]} 31. dxe5 {[%clk 0:00:25]}  Nxe5 {[%clk 0:01:00]} 32. Qf4 {[%clk 0:00:22]}  Qc7 {[%clk 0:00:52]} 33. Qd4 {[%clk 0:00:20]}  Qc4 {[%clk 0:00:46]} 34. h3 {[%clk 0:00:20]}  Rxb3 {[%clk 0:00:43]} 35. Nxb3 {[%clk 0:00:19]}  Qxb3 {[%clk 0:00:44]} 36. Qxb6 {[%clk 0:00:17]}  Qxc3 {[%clk 0:00:38]} 37. Qc5 {[%clk 0:00:17]}  Qd3 {[%clk 0:00:32]} 38. Re3 {[%clk 0:00:18]}  Qxf5 {[%clk 0:00:24]} 39. Qxd5+ {[%clk 0:00:18]}  Kh8 {[%clk 0:00:25]} 40. Kh1 {[%clk 0:00:16]}  Ne6 {[%clk 0:00:19]} 41. Rg3 {[%clk 0:00:16]}  Rd8 {[%clk 0:00:12]} 42. Qb7 {[%clk 0:00:16]}  Ng5 {[%clk 0:00:12]} 43. Qc7 {[%clk 0:00:12]}  Ngf7 {[%clk 0:00:10]} 44. Kh2 {[%clk 0:00:09]}  Qf4 {[%clk 0:00:09]} 45. Re3 {[%clk 0:00:07]}  Nf3+ {[%clk 0:00:08]} 46. Rxf3 {[%clk 0:00:07]}  Qxc7 {[%clk 0:00:09]} 47. h4 {[%clk 0:00:07]}  Ne5 {[%clk 0:00:09]} 48. h5 {[%clk 0:00:08]}  Nxf3+ {[%clk 0:00:09]} 0-1


[Site "https://www.chess.com"]

[Event "Titled Tuesday Blitz April 19 Early 2022"]
[White "Le, Tuan Minh"]
[Black "Sapunov, Evgeny"]
[WhiteFideId "12401153"]
[BlackFideId "4126661"]
[WhiteElo "2450"]
[BlackElo "2470"]
[Result "1-0"]
[Round "08"]
[TimeControl "180+1"]
[Date "2022.04.19"]
[WhiteClock "0:00:06"]
[BlackClock "0:00:16"]

1. d4 {[%clk 0:03:00]}  Nf6 {[%clk 0:02:46]} 2. Nf3 {[%clk 0:03:01]}  g6 {[%clk 0:02:46]} 3. Bg5 {[%clk 0:03:01]}  Bg7 {[%clk 0:02:45]} 4. Nbd2 {[%clk 0:03:01]}  d5 {[%clk 0:02:46]} 5. c3 {[%clk 0:03:02]}  Nbd7 {[%clk 0:02:46]} 6. e3 {[%clk 0:03:02]}  c5 {[%clk 0:02:47]} 7. Bd3 {[%clk 0:03:02]}  O-O {[%clk 0:02:47]} 8. O-O {[%clk 0:03:03]}  b6 {[%clk 0:02:47]} 9. a4 {[%clk 0:03:03]}  a6 {[%clk 0:02:48]} 10. h3 {[%clk 0:03:03]}  Bb7 {[%clk 0:02:48]} 11. Qe2 {[%clk 0:03:04]}  Qc8 {[%clk 0:02:48]} 12. Rfe1 {[%clk 0:03:03]}  Bc6 {[%clk 0:02:47]} 13. Ne5 {[%clk 0:02:57]}  Nxe5 {[%clk 0:02:47]} 14. dxe5 {[%clk 0:02:58]}  Nd7 {[%clk 0:02:47]} 15. e6 {[%clk 0:02:31]}  fxe6 {[%clk 0:02:44]} 16. Bxe7 {[%clk 0:02:31]}  Re8 {[%clk 0:02:41]} 17. Bh4 {[%clk 0:02:31]}  c4 {[%clk 0:02:19]} 18. Bc2 {[%clk 0:02:31]}  b5 {[%clk 0:02:20]} 19. Nf3 {[%clk 0:02:18]}  e5 {[%clk 0:02:18]} 20. axb5 {[%clk 0:01:36]}  axb5 {[%clk 0:02:16]} 21. Ng5 {[%clk 0:01:36]}  Nc5 {[%clk 0:02:09]} 22. Nxh7 {[%clk 0:01:30]}  Nd3 {[%clk 0:01:47]} 23. Ng5 {[%clk 0:01:21]}  Nxe1 {[%clk 0:01:23]} 24. Rxa8 {[%clk 0:01:21]}  Bxa8 {[%clk 0:01:22]} 25. Bxg6 {[%clk 0:01:21]}  Nd3 {[%clk 0:01:11]} 26. Qh5 {[%clk 0:01:16]}  Re7 {[%clk 0:01:08]} 27. Bh7+ {[%clk 0:01:06]}  Kf8 {[%clk 0:01:07]} 28. Bf5 {[%clk 0:01:06]}  Qe8 {[%clk 0:01:01]} 29. Bg6 {[%clk 0:01:00]}  Qd7 {[%clk 0:01:01]} 30. Qf3+ {[%clk 0:00:44]}  Kg8 {[%clk 0:01:00]} 31. Bh7+ {[%clk 0:00:45]}  Kh8 {[%clk 0:00:56]} 32. Qh5 {[%clk 0:00:45]}  Qd6 {[%clk 0:00:51]} 33. Bxd3+ {[%clk 0:00:42]}  Qh6 {[%clk 0:00:50]} 34. Bg6 {[%clk 0:00:10]}  Qxh5 {[%clk 0:00:47]} 35. Bxh5 {[%clk 0:00:11]}  Ra7 {[%clk 0:00:46]} 36. Ne6 {[%clk 0:00:07]}  Ra2 {[%clk 0:00:43]} 37. f4 {[%clk 0:00:08]}  exf4 {[%clk 0:00:29]} 38. exf4 {[%clk 0:00:09]}  Rxb2 {[%clk 0:00:30]} 39. f5 {[%clk 0:00:09]}  d4 {[%clk 0:00:30]} 40. f6 {[%clk 0:00:09]}  Rxg2+ {[%clk 0:00:29]} 41. Kf1 {[%clk 0:00:10]}  Bh6 {[%clk 0:00:27]} 42. f7 {[%clk 0:00:09]}  Rh2 {[%clk 0:00:20]} 43. Bf6+ {[%clk 0:00:08]}  Kh7 {[%clk 0:00:20]} 44. Ng5+ {[%clk 0:00:06]}  Bxg5 {[%clk 0:00:19]} 45. f8=Q {[%clk 0:00:06]}  Bxf6 {[%clk 0:00:19]} 46. Qxf6 {[%clk 0:00:04]}  d3 {[%clk 0:00:17]} 47. Bg6+ {[%clk 0:00:04]}  Kh6 {[%clk 0:00:17]} 48. Be4+ {[%clk 0:00:04]}  Kh5 {[%clk 0:00:16]} 49. Qg6+ {[%clk 0:00:05]}  Kh4 {[%clk 0:00:16]} 50. Qg4# {[%clk 0:00:06]} 1-0


[Site "https://www.chess.com"]

[Event "Titled Tuesday Blitz April 19 Early 2022"]
[White "Liyanage, Ranindu Dilshan"]
[Black "Warchol, Kamil"]
[WhiteFideId "9915834"]
[BlackFideId "21858241"]
[WhiteElo "1858"]
[BlackElo "1910"]
[Result "1-0"]
[Round "08"]
[TimeControl "180+1"]
[Date "2022.04.19"]
[WhiteClock "0:01:44"]
[BlackClock "0:00:57"]

1. d4 {[%clk 0:03:00]}  d6 {[%clk 0:02:56]} 2. Nc3 {[%clk 0:03:00]}  e5 {[%clk 0:02:53]} 3. Nf3 {[%clk 0:02:59]}  exd4 {[%clk 0:02:53]} 4. Nxd4 {[%clk 0:03:00]}  Nc6 {[%clk 0:02:53]} 5. Bf4 {[%clk 0:02:56]}  Bd7 {[%clk 0:02:53]} 6. Qd2 {[%clk 0:02:56]}  Nf6 {[%clk 0:02:47]} 7. O-O-O {[%clk 0:02:55]}  Be7 {[%clk 0:02:45]} 8. e3 {[%clk 0:02:47]}  a5 {[%clk 0:02:32]} 9. Be2 {[%clk 0:02:44]}  Nb4 {[%clk 0:02:26]} 10. a3 {[%clk 0:02:41]}  Nbd5 {[%clk 0:02:24]} 11. Nxd5 {[%clk 0:02:40]}  Nxd5 {[%clk 0:02:25]} 12. Bg3 {[%clk 0:02:41]}  c6 {[%clk 0:02:22]} 13. e4 {[%clk 0:02:35]}  Nc7 {[%clk 0:02:03]} 14. f4 {[%clk 0:02:33]}  O-O {[%clk 0:02:01]} 15. h4 {[%clk 0:02:26]}  Bf6 {[%clk 0:01:58]} 16. Bf2 {[%clk 0:02:25]}  Re8 {[%clk 0:01:56]} 17. Bf3 {[%clk 0:02:22]}  Qc8 {[%clk 0:01:50]} 18. Ne2 {[%clk 0:02:07]}  d5 {[%clk 0:01:30]} 19. e5 {[%clk 0:02:04]}  Be7 {[%clk 0:01:30]} 20. h5 {[%clk 0:02:03]}  Bg4 {[%clk 0:01:26]} 21. Nd4 {[%clk 0:02:00]}  c5 {[%clk 0:01:19]} 22. Ne2 {[%clk 0:01:56]}  Qe6 {[%clk 0:01:09]} 23. Ng3 {[%clk 0:01:48]}  b5 {[%clk 0:01:01]} 24. Qe2 {[%clk 0:01:46]}  b4 {[%clk 0:00:57]} 25. Bxg4 {[%clk 0:01:44]} 1-0


[Site "https://www.chess.com"]

[Event "Titled Tuesday Blitz April 19 Early 2022"]
[White "Lysyj, Igor"]
[Black "Ingebretsen, Jens E"]
[WhiteFideId "4150120"]
[BlackFideId "1522965"]
[WhiteElo "2774"]
[BlackElo "2553"]
[Result "1-0"]
[Round "08"]
[TimeControl "180+1"]
[Date "2022.04.19"]
[WhiteClock "0:01:53"]
[BlackClock "0:00:36"]

1. d4 {[%clk 0:03:00]}  Nf6 {[%clk 0:02:53]} 2. c4 {[%clk 0:02:58]}  e6 {[%clk 0:02:53]} 3. Nf3 {[%clk 0:02:59]}  d5 {[%clk 0:02:53]} 4. g3 {[%clk 0:02:58]}  Be7 {[%clk 0:02:53]} 5. Bg2 {[%clk 0:02:58]}  O-O {[%clk 0:02:53]} 6. Qb3 {[%clk 0:02:58]}  c6 {[%clk 0:02:51]} 7. O-O {[%clk 0:02:57]}  b6 {[%clk 0:02:50]} 8. Rd1 {[%clk 0:02:52]}  a5 {[%clk 0:02:45]} 9. Bf4 {[%clk 0:02:48]}  Ba6 {[%clk 0:02:42]} 10. Nbd2 {[%clk 0:02:48]}  Nbd7 {[%clk 0:02:38]} 11. Rac1 {[%clk 0:02:47]}  c5 {[%clk 0:02:33]} 12. e3 {[%clk 0:02:15]}  Rc8 {[%clk 0:02:01]} 13. Ne5 {[%clk 0:02:14]}  cxd4 {[%clk 0:01:13]} 14. exd4 {[%clk 0:02:13]}  dxc4 {[%clk 0:01:00]} 15. Ndxc4 {[%clk 0:02:12]}  Nxe5 {[%clk 0:01:00]} 16. dxe5 {[%clk 0:02:01]}  Bxc4 {[%clk 0:00:37]} 17. Rxd8 {[%clk 0:01:54]}  Bxb3 {[%clk 0:00:36]} 18. Rdxc8 {[%clk 0:01:53]} 1-0


[Site "https://www.chess.com"]

[Event "Titled Tuesday Blitz April 19 Early 2022"]
[White "Maksimenko, Viktor"]
[Black "Constantinou, Peter"]
[WhiteFideId "13710478"]
[BlackFideId "413038"]
[WhiteElo "2269"]
[BlackElo "2230"]
[Result "1-0"]
[Round "08"]
[TimeControl "180+1"]
[Date "2022.04.19"]
[WhiteClock "0:00:08"]
[BlackClock "0:00:02"]

1. d4 {[%clk 0:03:00]}  g6 {[%clk 0:03:00]} 2. e4 {[%clk 0:02:56]}  Bg7 {[%clk 0:03:01]} 3. Nc3 {[%clk 0:02:56]}  d6 {[%clk 0:03:02]} 4. g3 {[%clk 0:02:56]}  Nf6 {[%clk 0:03:01]} 5. Bg2 {[%clk 0:02:56]}  O-O {[%clk 0:03:02]} 6. Nge2 {[%clk 0:02:54]}  e5 {[%clk 0:03:02]} 7. h3 {[%clk 0:02:53]}  c6 {[%clk 0:02:59]} 8. a4 {[%clk 0:02:52]}  a5 {[%clk 0:02:59]} 9. O-O {[%clk 0:02:50]}  Na6 {[%clk 0:03:00]} 10. Be3 {[%clk 0:02:37]}  Nb4 {[%clk 0:02:59]} 11. Qd2 {[%clk 0:02:28]}  Be6 {[%clk 0:02:59]} 12. b3 {[%clk 0:02:16]}  d5 {[%clk 0:02:54]} 13. Rad1 {[%clk 0:01:59]}  Nxe4 {[%clk 0:02:48]} 14. Nxe4 {[%clk 0:01:57]}  dxe4 {[%clk 0:02:49]} 15. c3 {[%clk 0:01:49]}  Nd5 {[%clk 0:02:39]} 16. dxe5 {[%clk 0:01:44]}  Nxe3 {[%clk 0:02:13]} 17. Qxe3 {[%clk 0:01:43]}  Qc7 {[%clk 0:02:13]} 18. Nd4 {[%clk 0:01:40]}  Qxe5 {[%clk 0:02:08]} 19. Nxe6 {[%clk 0:01:40]}  Qxe6 {[%clk 0:02:08]} 20. Qxe4 {[%clk 0:01:35]}  Qxb3 {[%clk 0:02:08]} 21. Rb1 {[%clk 0:01:34]}  Qxc3 {[%clk 0:02:07]} 22. Rxb7 {[%clk 0:01:35]}  Rac8 {[%clk 0:01:57]} 23. Rd1 {[%clk 0:01:31]}  Rfd8 {[%clk 0:01:43]} 24. Rdd7 {[%clk 0:01:27]}  Rxd7 {[%clk 0:01:43]} 25. Rxd7 {[%clk 0:01:28]}  c5 {[%clk 0:01:34]} 26. Qd5 {[%clk 0:01:23]}  Rf8 {[%clk 0:01:33]} 27. Bf1 {[%clk 0:01:14]}  Bd4 {[%clk 0:01:30]} 28. Kg2 {[%clk 0:01:14]}  Qc2 {[%clk 0:01:19]} 29. Qf3 {[%clk 0:01:11]}  Qxa4 {[%clk 0:01:18]} 30. Rb7 {[%clk 0:01:09]}  Qc2 {[%clk 0:01:15]} 31. Bd3 {[%clk 0:01:03]}  Qc3 {[%clk 0:01:15]} 32. Qe2 {[%clk 0:00:57]}  a4 {[%clk 0:01:13]} 33. Bc4 {[%clk 0:00:57]}  Kg7 {[%clk 0:01:01]} 34. Qe6 {[%clk 0:00:53]}  Kh6 {[%clk 0:00:28]} 35. Qe2 {[%clk 0:00:43]}  a3 {[%clk 0:00:22]} 36. Bxf7 {[%clk 0:00:41]}  a2 {[%clk 0:00:12]} 37. Qxa2 {[%clk 0:00:34]}  Qd3 {[%clk 0:00:09]} 38. Qd5 {[%clk 0:00:26]}  Qf5 {[%clk 0:00:08]} 39. Qxf5 {[%clk 0:00:22]}  gxf5 {[%clk 0:00:09]} 40. f4 {[%clk 0:00:21]}  Ra8 {[%clk 0:00:05]} 41. g4 {[%clk 0:00:19]}  fxg4 {[%clk 0:00:03]} 42. hxg4 {[%clk 0:00:20]}  Ra3 {[%clk 0:00:02]} 43. Bg8 {[%clk 0:00:15]}  Re3 {[%clk 0:00:03]} 44. Rxh7+ {[%clk 0:00:13]}  Kg6 {[%clk 0:00:04]} 45. Rc7 {[%clk 0:00:13]}  Kf6 {[%clk 0:00:05]} 46. Bh7 {[%clk 0:00:13]}  Rc3 {[%clk 0:00:03]} 47. Be4 {[%clk 0:00:11]}  Ke6 {[%clk 0:00:04]} 48. Rc6+ {[%clk 0:00:11]}  Kd7 {[%clk 0:00:04]} 49. g5 {[%clk 0:00:12]}  Re3 {[%clk 0:00:05]} 50. Bd5 {[%clk 0:00:09]}  Re8 {[%clk 0:00:02]} 51. Ra6 {[%clk 0:00:09]}  Rf8 {[%clk 0:00:02]} 52. Kf3 {[%clk 0:00:10]}  c4 {[%clk 0:00:02]} 53. Ke4 {[%clk 0:00:07]}  c3 {[%clk 0:00:01]} 54. Kxd4 {[%clk 0:00:07]}  c2 {[%clk 0:00:02]} 55. Ra1 {[%clk 0:00:07]}  Rxf4+ {[%clk 0:00:02]} 56. Ke5 {[%clk 0:00:08]}  Rf2 {[%clk 0:00:01]} 57. Rc1 {[%clk 0:00:08]}  Re2+ {[%clk 0:00:02]} 58. Be4 {[%clk 0:00:08]}  Ke7 {[%clk 0:00:02]} 59. Rxc2 {[%clk 0:00:08]}  Re3 {[%clk 0:00:01]} 60. Rc7+ {[%clk 0:00:09]}  Kf8 {[%clk 0:00:01]} 61. Kf6 {[%clk 0:00:08]}  Re2 {[%clk 0:00:02]} 62. Rc8# {[%clk 0:00:08]} 1-0


[Site "https://www.chess.com"]